fUSD/lending_fUSD_20251011
["ID","MTS","AMOUNT","RATE_DAILY","PERIOD"]
[390911856,1760213439911,-4548.61688,0.00016398,2]
[390911859,1760213439920,-95109.2879694,0.00016398,2]
[390911861,1760213439929,-4871.429092,0.00016398,2]
[390911863,1760213439941,-1325.267711,0.00016399,5]
[390911865,1760213439951,-2470.0,0.000164,2]
[390911867,1760213439960,-975692.00352252,0.000164,2]
[390911869,1760213439972,-82505.19627012,0.000164,2]
[390911871,1760213439981,-500.0,0.000164,2]
[390911873,1760213439991,-200.0,0.000164,2]
[390911874,1760213440005,-185.75,0.000164,13]
[390911876,1760213440014,-3454.96182,0.000164,2]
[390911878,1760213440024,-4298.22883245,0.00016411,2]
[390911880,1760213440042,-6974.63042598,0.00016411,2]
[390911883,1760213440078,-3862.21764806,0.00016411,2]
[390911885,1760213440098,-18452.57743767,0.00016411,2]
[390911887,1760213440112,-6278.57448829,0.00016411,2]
[390911889,1760213440122,-151.0,0.00016435,2]
[390911890,1760213440134,-157.92968455,0.00016435,2]
[390911891,1760213440144,-272.516,0.00016437,2]
[390911892,1760213440154,-500.0,0.00016438,2]
[390911893,1760213440164,-191.478352,0.00016438,2]
[390911894,1760213440175,-152.233364,0.00016438,2]
[390911895,1760213440186,-155.482813,0.00016438,2]
[390911896,1760213440198,-191.478352,0.00016438,2]
[390911897,1760213440207,-162.255645,0.00016438,2]
[390911898,1760213440219,-152.233364,0.00016438,2]
[390911899,1760213440231,-159.380291,0.00016438,2]
[390911900,1760213440242,-157.592214,0.00016438,2]
[390911901,1760213440257,-157.592212,0.00016438,2]
[390911902,1760213440267,-161.859829,0.00016438,2]
[390911903,1760213440278,-157.592209,0.00016438,2]
[390911904,1760213440288,-4316.865985,0.00016438,2]
[390911905,1760213440299,-154.502564,0.00016438,2]
[390911906,1760213440310,-151.044095,0.00016438,2]
[390911907,1760213440321,-3201.502457,0.00016438,2]
[390911908,1760213440335,-157.59221,0.00016438,2]
[390911909,1760213440345,-1689.29387111,0.00016438,2]
[390911948,1760213442405,-179.00529582,0.00016437,2]
[390911950,1760213442420,-62.96799389,0.00016438,2]
[390911951,1760213442430,-151.849919,0.00016438,2]
[390911953,1760213442440,-2441.0,0.00016438,2]
[390911954,1760213442450,-500.0,0.00016438,2]
[390911955,1760213442460,-500.0,0.00016438,2]
[390911957,1760213442470,-615.11,0.00016438,2]
[390911958,1760213442480,-500.0,0.00016438,2]
[390911960,1760213442490,-21.65255066,0.00016438,2]
[390911980,1760213443527,-478.34744934,0.00016438,2]
[390911982,1760213443536,-1168.53,0.00016438,2]
[390911984,1760213443546,-500.0,0.00016438,2]
[390911986,1760213443556,-500.0,0.00016438,2]
[390911988,1760213443566,-500.0,0.00016438,2]
[390911990,1760213443575,-500.0,0.00016438,2]
[390911992,1760213443585,-500.0,0.00016438,2]
[390911994,1760213443594,-793.32,0.00016438,2]
[390911996,1760213443604,-555.1,0.00016438,2]
[390911998,1760213443613,-597.62,0.00016438,2]
[390912000,1760213443622,-500.0,0.00016438,2]
[390912002,1760213443631,-880.85,0.00016438,2]
[390912005,1760213443641,-629.86,0.00016438,2]
[390912007,1760213443650,-629.86,0.00016438,2]
[390912009,1760213443660,-629.86,0.00016438,2]
[390912011,1760213443669,-629.86,0.00016438,2]
[390912013,1760213443680,-629.86,0.00016438,2]
[390912015,1760213443689,-629.86,0.00016438,2]
[390912017,1760213443698,-629.86,0.00016438,2]
[390912019,1760213443707,-629.86,0.00016438,2]
[390912021,1760213443716,-629.86,0.00016438,2]
[390912023,1760213443725,-629.86,0.00016438,2]
[390912024,1760213443734,-629.86,0.00016438,2]
[390912027,1760213443743,-629.86,0.00016438,2]
[390912028,1760213443755,-629.86,0.00016438,2]
[390912030,1760213443765,-629.86,0.00016438,2]
[390912033,1760213443774,-629.86,0.00016438,2]
[390912034,1760213443783,-629.86,0.00016438,2]
[390912036,1760213443793,-629.86,0.00016438,2]
[390912038,1760213443802,-629.86,0.00016438,2]
[390912040,1760213443811,-629.86,0.00016438,2]
[390912042,1760213443820,-629.86,0.00016438,2]
[390912044,1760213443830,-629.86,0.00016438,2]
[390912047,1760213443839,-629.86,0.00016438,2]
[390912049,1760213443848,-629.86,0.00016438,2]
[390912051,1760213443857,-629.86391942,0.00016438,2]
[390912052,1760213443867,-500.0,0.00016438,2]
[390912055,1760213443876,-500.0,0.00016438,2]
[390912056,1760213443885,-306.3081689,0.00016438,2]
[390912066,1760213443964,-1000.00000504,0.00016438,2]
[390912068,1760213443975,-203.33182606,0.00016438,2]
[390912069,1760213443984,-992.03,0.00016438,2]
[390912070,1760213443994,-202.51727394,0.00016438,2]
[390912071,1760213444028,-661.709808,0.00016438,2]
[390912072,1760213444044,-305.95291806,0.00016438,2]
[390912073,1760213444054,-50.60708194,0.00016438,2]
[390912074,1760213444228,-262.0356935,0.00016438,2]
[390912075,1760213444283,-144.32419045,0.00016438,2]
[390912076,1760213444292,-500.0,0.00016438,2]
[390912077,1760213444301,-500.0,0.00016438,2]
[390912078,1760213444311,-500.0,0.00016438,2]
[390912079,1760213444324,-500.0,0.00016438,2]
[390912080,1760213444333,-500.0,0.00016438,2]
[390912082,1760213444343,-495.22785984,0.00016438,2]
[390912083,1760213444355,-281.63,0.00016438,2]
[390912098,1760213445447,-3246.10395739,0.00016338,2]
[390912105,1760213445507,-3339.25,0.00016338,2]
[390912106,1760213445519,-500.0,0.00016338,2]
[390912107,1760213445572,-571.85,0.00016338,2]
[390912108,1760213445584,-886.52768017,0.00016338,2]
[390912109,1760213445618,-2556.60476968,0.00016338,2]
[390912110,1760213445728,-29998.4409,0.00016338,2]
[390912602,1760214631677,-608.11,0.00013699,2]
[390912604,1760214631687,-166.47344729,0.00014218,2]
[390912606,1760214631697,-194.39943741,0.0001429,2]
[390912608,1760214631707,-5806.632404,0.00014318,2]
[390912610,1760214631717,-632.26329696,0.0001439,2]
[390912612,1760214631728,-200.0,0.00014843,2]
[390912613,1760214631737,-151.0,0.000149,13]
[390912614,1760214631747,-248.86787048,0.000149,2]
[390912615,1760214631757,-21448.77208119,0.000149,2]
[390912616,1760214631766,-3143.80216662,0.000149,2]
[390912617,1760214631782,-211.40028568,0.000149,2]
[390912618,1760214631791,-277.39190499,0.00014913,2]
[390912619,1760214631801,-500.0,0.00014973,2]
[390912620,1760214631811,-165.64596399,0.00014973,2]
[390912621,1760214631821,-500.0,0.00014973,2]
[390912622,1760214631831,-500.0,0.00014973,2]
[390912623,1760214631842,-456.8451738,0.00014973,2]
[390912624,1760214631851,-500.0,0.00014973,2]
[390912625,1760214631861,-501.07168296,0.00014973,2]
[390912626,1760214631871,-500.0,0.00014973,2]
[390912627,1760214631881,-1565.46895804,0.00014975,2]
[390912628,1760214631891,-357.7,0.0001499,2]
[390912629,1760214631901,-357.7,0.0001499,2]
[390912630,1760214631912,-357.7,0.0001499,2]
[390912631,1760214631921,-357.7,0.0001499,2]
[390912632,1760214631931,-357.7,0.0001499,2]
[390912633,1760214631940,-151.0,0.00014997,2]
[390912634,1760214631950,-200.65006395,0.00014999,2]
[390912635,1760214631960,-239.51561776,0.00014999,2]
[390912636,1760214631969,-500.0,0.00014999,2]
[390912637,1760214631979,-333.51501652,0.00014999,2]
[390912638,1760214631988,-500.0,0.00014999,2]
[390912639,1760214631998,-500.0,0.00014999,2]
[390912640,1760214632007,-623.01490919,0.00014999,2]
[390912641,1760214632017,-500.0,0.00014999,2]
[390912643,1760214632031,-150.0,0.00014999,2]
[390912645,1760214632041,-116008.53600714,0.00015,2]
[390912648,1760214632065,-2215.4,0.00015,2]
[390912650,1760214632077,-5975.35809681,0.00015,2]
[390912652,1760214632091,-28280.60261705,0.00015,2]
[390912653,1760214632102,-926.01549467,0.00015,2]
[390912654,1760214632113,-4110.20728209,0.00015,2]
[390912655,1760214632124,-5603.99560223,0.00015,2]
[390912657,1760214632136,-2961.49437264,0.00015,2]
[390912659,1760214632146,-1650.0,0.00015,2]
[390912689,1760214637948,-235.89054547,0.00014899,2]
[390912690,1760214637957,-500.0,0.00014973,2]
[390912691,1760214637966,-6521.9770923,0.00015,2]
[390912693,1760214638017,-947.53446188,0.00015,2]
[390912694,1760214638048,-972.8,0.00015,2]
[390912695,1760214638060,-1260.0,0.00015,2]
[390912696,1760214638071,-1118.10003,0.00015,2]
[390912702,1760214638130,-4158.5536972,0.00015,2]
[390912883,1760214639681,-236377.79503318,0.00015,2]
[390912886,1760214639693,-3915.99999993,0.00015,2]
[390912897,1760214639745,-50014.99961782,0.00015,2]
[390912899,1760214639755,-1432.0,0.00015,2]
[390912910,1760214639860,-246045.75674684,0.00015,2]
[390912912,1760214639871,-16875.36386462,0.00015,2]
[390912917,1760214639917,-11095.0,0.00015,2]
[390912919,1760214639928,-9895.184817,0.00015,2]
[390913029,1760214642924,-605.15,0.00015,2]
[390913030,1760214642980,-5499.46729663,0.00015,2]
[390913031,1760214642991,-5628.63126363,0.00015,2]
[390913043,1760214645923,-334.9997701,0.000149,2]
[390913044,1760214645933,-4758.78734164,0.00015,2]
[390913046,1760214645961,-1451.32513088,0.00015,2]
[390913047,1760214645984,-2091.54442055,0.00015,2]
[390913048,1760214645995,-19963.93291497,0.00015,2]
[390913049,1760214646011,-1108.7,0.00015,2]
[390913050,1760214646023,-930.26862,0.00015,2]
[390913061,1760214918656,167.07,7.419e-05,2]
[390913062,1760214919070,167.07,9.274e-05,2]
[390913063,1760214919496,167.07,0.00011128,2]
[390913194,1760215831905,-213.9386452,0.00012983,2]
[390913195,1760215831915,-452.20563803,0.00012983,2]
[390913196,1760215831928,-1547.79436197,0.00012983,2]
[390913197,1760215831938,-167.07,0.00012983,2]
[390913198,1760215831948,-1977.39750755,0.00013476,2]
[390913199,1760215831958,-7371.364997,0.00013824,2]
[390913200,1760215831968,-213.9386452,0.00013895,2]
[390913201,1760215831978,-250.0,0.0001407,2]
[390913202,1760215831987,-300.0,0.00014127,2]
[390913203,1760215832001,-1200.0,0.00014127,2]
[390913204,1760215832011,-6379.02,0.00014128,2]
[390913205,1760215832029,-1600.0,0.00014151,2]
[390913206,1760215832042,-150.0,0.0001428,2]
[390913207,1760215832053,-500.0,0.0001428,2]
[390913208,1760215832063,-265.68993447,0.0001428,2]
[390913209,1760215832074,-2000.0,0.00014281,2]
[390913210,1760215832086,-2500.0,0.00014281,2]
[390913211,1760215832096,-191.40882774,0.00014281,2]
[390913213,1760215832106,-2000.0,0.00014281,2]
[390913215,1760215832116,-195.0,0.00014281,2]
[390913217,1760215832127,-597.21763748,0.00014281,2]
[390913219,1760215832136,-182.35184329,0.00014281,2]
[390913221,1760215832146,-170.53,0.00014507,2]
[390913223,1760215832157,-546.15,0.00014556,2]
[390913225,1760215832166,-812.0469347,0.00014685,2]
[390913227,1760215832177,-167.07,0.00014838,2]
[390913229,1760215832187,-151.64897428,0.000149,2]
[390913231,1760215832197,-474.32,0.000149,2]
[390913233,1760215832207,-166.07596626,0.000149,2]
[390913235,1760215832217,-184.97524997,0.000149,2]
[390913237,1760215832227,-545.0225605,0.000149,2]
[390913239,1760215832237,-249.6527145,0.000149,2]
[390913242,1760215832247,-165.91191364,0.000149,2]
[390913246,1760215832257,-10278.21,0.00014902,2]
[390913249,1760215832268,-170.72596355,0.00014973,2]
[390913252,1760215832278,-500.0,0.00014973,2]
[390913255,1760215832288,-500.0,0.00014973,2]
[390913258,1760215832297,-500.0,0.00014973,2]
[390913261,1760215832307,-500.0,0.00014973,2]
[390913264,1760215832317,-185.099,0.00014973,2]
[390913267,1760215832327,-2461.851,0.00014973,2]
[390913270,1760215832337,-151.0,0.00014991,2]
[390913274,1760215832348,-151.0,0.00014991,2]
[390913277,1760215832358,-151.0,0.00014991,2]
[390913280,1760215832368,-151.0,0.00014991,2]
[390913284,1760215832378,-151.0,0.00014991,2]
[390913287,1760215832387,-151.0,0.00014991,2]
[390913356,1760215833042,-151.0,0.00014991,2]
[390913360,1760215833071,-151.0,0.00014991,2]
[390913362,1760215833081,-151.0,0.00014991,2]
[390913364,1760215833091,-151.0,0.00014991,2]
[390913366,1760215833100,-151.0,0.00014991,2]
[390913368,1760215833111,-151.0,0.00014991,2]
[390913370,1760215833120,-200.0,0.00014991,2]
[390913372,1760215833130,-155.0,0.00014999,2]
[390913374,1760215833140,-1380.47834614,0.00014999,5]
[390913376,1760215833150,-150.0,0.00014999,2]
[390913378,1760215833160,-150.0,0.00014999,2]
[390913380,1760215833170,-150.0,0.00014999,2]
[390913382,1760215833180,-25697.84682456,0.00015,2]
[390913385,1760215833194,-972.67038173,0.00015,2]
[390913387,1760215833206,-1747.29466294,0.00015,2]
[390913391,1760215833230,-800.365,0.00015,2]
[390913394,1760215833258,-16635.2078049,0.000145,2]
[390913399,1760215833293,-822.51933016,0.000145,2]
[390913585,1760215837787,-89735.27286494,0.000145,2]
[390913586,1760215837798,-346.69795451,0.00014976,2]
[390913587,1760215837878,-153.30204549,0.00014976,2]
[390913588,1760215837888,-214.72793344,0.00014976,2]
[390913589,1760215837905,-184.83994722,0.00014976,2]
[390913590,1760215837915,-214.38630054,0.00014999,2]
[390913591,1760215837924,-150.0,0.00014999,2]
[390913592,1760215837934,-17597.54377331,0.00015,2]
[390913593,1760215837946,-2200.148945,0.00015,2]
[390913594,1760215837957,-551.09530478,0.00015,2]
[390913595,1760215838070,-374.09889622,0.00015,2]
[390913604,1760215838212,-28150.0,0.00015,2]
[390913605,1760215838224,-33475.74264345,0.00015,2]
[390913607,1760215838235,-650.48841174,0.00015,2]
[390913609,1760215838246,-5163.98971219,0.00015,2]
[390913773,1760215839766,-150.0,0.00014999,2]
[390913775,1760215839776,-489.7628795,0.00015,2]
[390913797,1760215839976,-424.8418315,0.00015,2]
[390913799,1760215839987,-855.43587938,0.00015,2]
[390913802,1760215840001,-272.24010028,0.00015,2]
[390913806,1760215840034,-5747.41156217,0.00015,2]
[390913808,1760215840045,-8399.88899999,0.00015,2]
[390913810,1760215840056,-528.0,0.00015,2]
[390913812,1760215840067,-2214.8,0.00015,2]
[390914101,1760215842843,-16612.82190001,0.00015,2]
[390914452,1760215846309,-500.0,0.00014999,2]
[390914453,1760215846318,-150.0,0.00014999,2]
[390914454,1760215846327,-1561.768,0.00015,2]
[390914455,1760215846360,-1759.9999999,0.00015,2]
[390914460,1760215846417,-200.0,0.000145,5]
[390914462,1760215846427,-59797.8457,0.00015,2]
[390914540,1760215847399,-11062.0,0.00015,2]
[390914542,1760215847411,-4595.76871309,0.00015,2]
[390914585,1760215879179,-250.0,0.00012983,2]
[390914844,1760216372875,-4771.91200739,0.000136,3]
[390914845,1760216374810,-646.65982734,0.000136,3]
[390914931,1760216598172,-3543.84355172,0.000133,5]
[390914932,1760216599698,-302.0,0.000133,5]
[390914933,1760216601638,-260.14817896,0.000133,5]
[390914934,1760216603553,-302.0,0.000133,5]
[390914935,1760216605025,-154.35433313,0.000133,5]
[390914936,1760216608757,-208.0,0.000133,5]
[390914937,1760216611868,-241.64566687,0.000133,5]
[390914938,1760216628200,-164.35433313,0.000133,5]
[390914940,1760216629647,-349.0,0.000133,5]
[390914943,1760216632259,-83.64566687,0.000133,5]
[390914944,1760216632282,-150.215437,0.00013333,2]
[390914945,1760216632303,-187.36019949,0.000134,2]
[390914946,1760216632324,-18.42436351,0.000136,2]
[390914947,1760216636026,-316.17232089,0.000136,2]
[390914948,1760216636046,-136.82767911,0.00013611,2]
[390914949,1760216637103,-263.02539771,0.00013611,2]
[390914950,1760216640276,-298.64566687,0.00013611,2]
[390914951,1760216672812,-166.63261706,0.00013558,2]
[390914955,1760216704212,-7144.87944946,0.00013609,2]
[390914956,1760216722847,-382.83475749,0.00013609,2]
[390915004,1760217031946,-300.0,0.00013606,2]
[390915007,1760217031956,-150.0,0.00013607,2]
[390915009,1760217031965,-500.0,0.00013607,2]
[390915011,1760217031974,-244.53193848,0.00013607,2]
[390915012,1760217031984,-500.0,0.00013607,2]
[390915013,1760217031993,-138.46806152,0.00013607,2]
[390915014,1760217032017,-361.53193848,0.00013607,2]
[390915015,1760217032027,-296.71806152,0.00013607,2]
[390915016,1760217032063,-203.28193848,0.00013607,2]
[390915017,1760217032073,-500.0,0.00013607,2]
[390915018,1760217032083,-500.0,0.00013607,2]
[390915019,1760217032092,-500.0,0.00013607,2]
[390915020,1760217032102,-500.0,0.00013607,2]
[390915021,1760217032111,-500.0,0.00013607,2]
[390915022,1760217032121,-500.0,0.00013607,2]
[390915023,1760217032131,-500.0,0.00013607,2]
[390915024,1760217032141,-500.0,0.00013607,2]
[390915025,1760217032150,-500.0,0.00013607,2]
[390915026,1760217032159,-500.0,0.00013607,2]
[390915027,1760217032168,-500.0,0.00013607,2]
[390915028,1760217032179,-500.0,0.00013607,2]
[390915029,1760217032188,-500.0,0.00013607,2]
[390915030,1760217032197,-500.0,0.00013607,2]
[390915031,1760217032207,-500.0,0.00013607,2]
[390915032,1760217032216,-500.0,0.00013607,2]
[390915033,1760217032226,-500.0,0.00013607,2]
[390915034,1760217032235,-500.0,0.00013607,2]
[390915035,1760217032245,-383.77405036,0.00013607,2]
[390915036,1760217032255,-500.0,0.00013607,2]
[390915037,1760217032264,-500.0,0.00013607,2]
[390915038,1760217032273,-453.57721116,0.00013607,2]
[390915039,1760217032285,-46.42278884,0.00013607,2]
[390915040,1760217032295,-500.0,0.00013607,2]
[390915042,1760217032307,-500.0,0.00013607,2]
[390915044,1760217032317,-500.0,0.00013607,2]
[390915046,1760217032327,-125.13213047,0.00013607,2]
[390915048,1760217032341,-374.86786953,0.00013607,2]
[390915050,1760217032352,-500.0,0.00013607,2]
[390915052,1760217032361,-500.0,0.00013607,2]
[390915054,1760217032371,-500.0,0.00013607,2]
[390915056,1760217032380,-500.0,0.00013607,2]
[390915059,1760217032391,-17470.41579305,0.00013609,2]
[390915062,1760217032401,-250.0,0.0001361,2]
[390915067,1760217032411,-2686.77125631,0.00013611,2]
[390915070,1760217032421,-2751.0,0.00013659,2]
[390915072,1760217032430,-741.03,0.00013706,2]
[390915074,1760217032440,-250.0,0.00013736,7]
[390915076,1760217032449,-200.0,0.00013745,2]
[390915078,1760217032459,-1000.0,0.00013839,2]
[390915080,1760217032468,-666.0,0.00013841,3]
[390915083,1760217032478,-2650.08,0.00013886,2]
[390915085,1760217032488,-1852.42,0.00013965,2]
[390915087,1760217032497,-1412.56469872,0.00013975,2]
[390915089,1760217032513,-2453.68609667,0.00013975,2]
[390915091,1760217032523,-1077.84190333,0.00014,2]
[390915094,1760217032534,-14.65809667,0.00014,2]
[390915096,1760217032543,-474.4,0.0001407,2]
[390915097,1760217032556,-474.4,0.0001407,2]
[390915100,1760217032565,-1324.92,0.0001407,2]
[390915102,1760217032574,-150.0,0.00014078,2]
[390915104,1760217032583,-474.4,0.000141,2]
[390915106,1760217032593,-694.68,0.000141,2]
[390915108,1760217032602,-474.4,0.000141,2]
[390915110,1760217032611,-500.0,0.00014181,2]
[390915112,1760217032620,-1093.0,0.00014235,2]
[390915114,1760217032630,-434.0,0.00014323,2]
[390915116,1760217032639,-645.0,0.00014429,2]
[390915118,1760217032648,-166.66,0.00014455,2]
[390915120,1760217032657,-200.0,0.000145,5]
[390915122,1760217032666,-1117.0,0.00014501,2]
[390915124,1760217032675,-827.4114009,0.00014557,2]
[390915126,1760217032685,-500.0,0.000146,5]
[390915128,1760217032694,-695.60688146,0.00014663,2]
[390915130,1760217032703,-700.0,0.000147,5]
[390915132,1760217032712,-255.0,0.00014723,2]
[390915134,1760217032721,-316.98598716,0.00014763,2]
[390915136,1760217032731,-1008.94,0.000148,2]
[390915138,1760217032740,-1000.0,0.000148,5]
[390915140,1760217032749,-1329.4969267,0.00014823,2]
[390915142,1760217032758,-4039.47313954,0.00014838,2]
[390915144,1760217032768,-441.28847063,0.00014841,2]
[390915146,1760217032777,-1241.3959124,0.00014842,2]
[390915148,1760217032786,-20391.7133787,0.00014842,2]
[390915149,1760217032795,-160.39800424,0.000149,2]
[390915151,1760217032807,-237.54609099,0.000149,2]
[390915153,1760217032816,-296.47911266,0.000149,2]
[390915155,1760217032825,-313.64818039,0.000149,2]
[390915157,1760217032834,-1200.0,0.000149,5]
[390915159,1760217032843,-196.09156205,0.000149,2]
[390915161,1760217032853,-2931.89378218,0.000149,2]
[390915163,1760217032863,-2095.86811108,0.000149,2]
[390915165,1760217032873,-161.57320052,0.000149,2]
[390915167,1760217032882,-363.34837368,0.000149,2]
[390915169,1760217032893,-420.0,0.00014912,2]
[390915171,1760217032902,-2000.0,0.00014967,2]
[390915173,1760217032913,-195.0,0.00014969,2]
[390915175,1760217032923,-195.0,0.0001497,2]
[390915177,1760217032933,-250.0,0.0001497,2]
[390915179,1760217032944,-784.50633351,0.0001497,2]
[390915181,1760217032954,-195.0,0.0001497,2]
[390915183,1760217032963,-195.0,0.0001497,2]
[390915186,1760217032973,-500.0,0.00014973,2]
[390915187,1760217032981,-500.0,0.00014973,2]
[390915189,1760217032991,-500.0,0.00014973,2]
[390915192,1760217033001,-223.92658699,0.00014973,2]
[390915194,1760217033011,-500.0,0.00014973,2]
[390915196,1760217033021,-504.78413349,0.00014973,2]
[390915198,1760217033032,-500.0,0.00014973,2]
[390915200,1760217033042,-171.70961218,0.0001499,2]
[390915201,1760217033053,-151.0,0.00014997,2]
[390915203,1760217033064,-150.0,0.00014999,2]
[390915205,1760217033074,-500.0,0.00014999,2]
[390915207,1760217033085,-500.0,0.00014999,2]
[390915209,1760217033095,-150.0,0.00014999,2]
[390915211,1760217033106,-150.0,0.00014999,2]
[390915213,1760217033116,-150.0,0.00014999,2]
[390915215,1760217033126,-150.0,0.00014999,2]
[390915217,1760217033136,-150.0,0.00014999,2]
[390915219,1760217033147,-500.0,0.00014999,2]
[390915222,1760217033157,-150.0,0.00014999,2]
[390915224,1760217033167,-150.0,0.00014999,2]
[390915226,1760217033177,-150.0,0.00014999,2]
[390915228,1760217033187,-150.0,0.00014999,2]
[390915230,1760217033197,-500.0,0.00014999,2]
[390915232,1760217033207,-150.0,0.00014999,2]
[390915234,1760217033217,-150.0,0.00014999,2]
[390915236,1760217033226,-150.0,0.00014999,2]
[390915238,1760217033236,-500.0,0.00014999,2]
[390915240,1760217033246,-666.0,0.00014999,2]
[390915242,1760217033255,-666.0,0.00014999,2]
[390915244,1760217033265,-5097.0,0.00015,2]
[390915246,1760217033275,-23241.90021446,0.00015,2]
[390915248,1760217033288,-20649.23850861,0.00015,2]
[390915250,1760217033302,-1764.39511108,0.00015,2]
[390915252,1760217033315,-3738.53558558,0.00015,2]
[390915254,1760217033327,-3166.82020646,0.00015,2]
[390915257,1760217033342,-5310.94396834,0.00015,2]
[390915439,1760217037920,-280.69418,0.00013885,2]
[390915440,1760217037941,-198.69378306,0.00013885,2]
[390915441,1760217037952,-150.30955341,0.00013885,2]
[390915442,1760217037962,-196.22,0.00014484,2]
[390915443,1760217037972,-1188.63974662,0.00015,2]
[390915444,1760217037985,-55104.04800001,0.00015,2]
[390915445,1760217038010,-1466.465001,0.00015,2]
[390915447,1760217039838,-1101.22456,0.00015,2]
[390915450,1760217039850,-110014.58934007,0.00015,2]
[390915452,1760217039862,-2584.88594981,0.00015,2]
[390915782,1760217043077,-55110.00000001,0.00015,2]
[390915789,1760217043135,-858.05447356,0.00015,2]
[390915791,1760217043147,-407.1390354,0.00015,2]
[390915807,1760217043290,-5319.7236417,0.00015,2]
[390915809,1760217043302,-2810.33448838,0.00015,2]
[390915817,1760217043369,-179436.42189756,0.00015,2]
[390915819,1760217043381,-11005.995,0.00015,2]
[390915855,1760217043715,-1.6e-07,0.00015,2]
[390916147,1760217046574,-500.0,0.00013606,2]
[390916149,1760217046584,-500.0,0.00013606,2]
[390916151,1760217046593,-500.0,0.00013606,2]
[390916153,1760217046602,-702.64312,0.00015,2]
[390916155,1760217046613,-1269.49203664,0.00015,2]
[390916159,1760217046643,-10549.6352,0.00015,2]
[390916161,1760217046655,-11120.35648524,0.00015,2]
[390916166,1760217046683,-1103.8,0.00015,2]
[390916203,1760217047093,-438.37740503,0.00013606,2]
[390916204,1760217047103,-21.01981901,0.00015,2]
[390916205,1760217047156,-1413.25726,0.00015,2]
[390916206,1760217047168,-1843.40000006,0.00015,2]
[390916314,1760217588919,-248.76941821,0.00013512,2]
[390916386,1760217829134,2100.0,8.22e-05,2]
[390916387,1760217829696,151.0946243,9.59e-05,2]
[390916388,1760217829726,1948.9053757,9.59e-05,2]
[390916389,1760217830377,2100.0,0.0001096,2]
[390916390,1760217831062,2100.0,0.0001233,2]
[390916396,1760217943506,3000.0,8.22e-05,2]
[390916397,1760217944442,3000.0,9.59e-05,2]
[390916398,1760217944680,3000.0,0.0001096,2]
[390916399,1760217945327,3000.0,0.0001233,2]
[390916407,1760218063386,1400.0,9.527e-05,2]
[390916408,1760218063981,1400.0,0.00010897,2]
[390916409,1760218064550,1400.0,0.00012267,2]
[390916436,1760218188259,3000.0,8.22e-05,2]
[390916437,1760218188845,3000.0,9.59e-05,2]
[390916438,1760218189426,3000.0,0.0001096,2]
[390916439,1760218189991,3000.0,0.0001233,2]
[390916460,1760218232259,-334.78694722,0.00013407,2]
[390916461,1760218232269,-8546.44,0.00013419,2]
[390916462,1760218232281,-632.61363368,0.000135,2]
[390916463,1760218232292,-1135.38636632,0.000135,2]
[390916464,1760218232302,-751.23058179,0.00013512,2]
[390916465,1760218232311,-1600.0,0.00013572,2]
[390916466,1760218232320,-1200.0,0.00013593,2]
[390916467,1760218232329,-6713.36,0.00013594,2]
[390916468,1760218232339,-694.67071286,0.00013615,2]
[390916469,1760218232348,-300.0,0.00013635,2]
[390916470,1760218232358,-300.0,0.00013636,2]
[390916471,1760218232368,-1400.0,0.00013637,2]
[390916472,1760218232378,-1200.0,0.00013698,2]